[Event "IND-ch Women 2019"]
[Site "Karaikkudi"]
[Date "2019.07.21"]
[Round "4.8"]
[White "Mohota, Nisha"]
[Black "Kiran, Manisha Mohanty"]
[Result "1/2-1/2"]
[ECO "D93"]
[WhiteElo "2221"]
[BlackElo "2054"]
[Annotator "RC"]
[PlyCount "56"]
[EventDate "2019.07.19"]
[EventType "swiss"]
[EventCountry "IND"]
[SourceTitle "playchess.com"]
[Source "ChessBase"]
[SourceQuality "1"]
[TimeControl "40/5400+30:1800+30"]

1. d4 {[%emt 0:00:00]} Nf6 {[%emt 0:00:00]} 2. c4 {[%emt 0:00:00]} g6 {[%emt 0:00:04]} 3. Nc3 {[%emt 0:00:05]} d5 {[%emt 0:00:06]} 4. Nf3 {[%emt 0:00:07]} Bg7 {[%emt 0:00:06]} 5. Bf4 {[%emt 0:00:14]} O-O {[%emt 0:00:17]} 6. Rc1 {[%emt 0:00:06]} c6 {[%emt 0:00:15]} 7. e3 {[%emt 0:00:16]} Qb6 {[%emt 0:04:26]} 8. Qb3 {[%emt 0:01:33]} Be6 {[%emt 0:00:31]} 9. Ng5 {[%emt 0:12:49]} Bf5 {[%emt 0:11:54]} 10. h3 {[%emt 0:09:57]} h6 {[%emt 0:00:57]} 11. Nf3 {[%emt 0:02:28]} Be6 {[%emt 0:00:36]} 12. c5 {[%emt 0:06:27]} Qxb3 {[%emt 0:00:10]} 13. axb3 {[%emt 0:00:02]} Ne4 {[%emt 0:00:17]} 14. Bd3 {[%emt 0:09:24]} Nd7 {[%emt 0:03:38]} 15. b4 {[%emt 0:06:37]} Nxc3 {[%emt 0:06:57]} 16. Rxc3 {[%emt 0:01:46]} a6 {[%emt 0:00:06]} 17. Ke2 {[%emt 0:01:22]} g5 {[%emt 0:00:33]} 18. Bh2 {[%emt 0:05:42]} f5 {[%emt 0:00:11]} 19. h4 {[%emt 0:02:27]} g4 {[%emt 0:10:17]} 20. Nd2 {[%emt 0:01:14]} f4 {[%emt 0:01:09]} 21. Bxf4 {[%emt 0:08:07]} Bxd4 {[%emt 0:00:57]} 22. Rc2 {[%emt 0:00:43]} Bg7 {[%emt 0:00:10]} 23. Nb3 {[%emt 0:00:42]} Kh8 {[%emt 0:01:35]} 24. Nd2 {[%emt 0:00:12]} Kg8 {[%emt 0:00:08]} 25. Nb3 {[%emt 0:00:02]} Kh8 {[%emt 0:00:09]} 26. Nd2 {[%emt 0:00:03]} Kg8 {[%emt 0:00:09]} 27. Nb3 {[%emt 0:00:03]} Kh8 {[%emt 0:00:09]} 28. Nd2 {[%emt 0:00:25]} Kg8 {[%emt 0:00:05]} 1/2-1/2

[Event "IND-ch Women 2019"]
[Site "Karaikkudi"]
[Date "2019.07.21"]
[Round "4.9"]
[White "Ramaswamy, Aarthie"]
[Black "Priyanka, Kumari"]
[Result "1-0"]
[ECO "B90"]
[WhiteElo "2020"]
[BlackElo "1991"]
[Annotator "NA"]
[PlyCount "117"]
[EventDate "2019.07.19"]
[EventType "swiss"]
[EventCountry "IND"]
[SourceTitle "playchess.com"]
[Source "ChessBase"]
[SourceQuality "1"]
[TimeControl "40/5400+30:1800+30"]

1. e4 {[%emt 0:01:26]} c5 {[%emt 0:00:14]} 2. Nf3 {[%emt 0:00:05]} d6 {[%emt 0:00:07]} 3. d4 {[%emt 0:00:02]} cxd4 {[%emt 0:00:06]} 4. Nxd4 {[%emt 0:00:04]} Nf6 {[%emt 0:00:16]} 5. Nc3 {[%emt 0:00:44]} a6 {[%emt 0:00:27]} 6. a3 {[%emt 0:00:09]} e5 {[%emt 0:03:39]} 7. Nf5 {[%emt 0:00:06]} d5 {[%emt 0:12:22]} 8. Bg5 {[%emt 0:00:12]} d4 $1 {[%emt 0:03:23]} 9. Bxf6 {[%emt 0:00:17]} gxf6 {[%emt 0:07:35]} 10. Na2 {[%emt 0:01:27]} Nc6 {[%emt 0:09:02]} 11. Bd3 {[%emt 0:22:57]} Be6 {[%emt 0:08:25]} 12. O-O {[%emt 0:05:15]} Ne7 {[%emt 0:03:36]} 13. Qf3 {[%emt 0:06:31]} Rg8 {[%emt 0:06:41]} 14. c3 {[%emt 0:06:52]} Ng6 {[%emt 0:11:46]} 15. g3 {[%emt 0:09:57]} Bc5 $16 {[%emt 0:06:21]} 16. Kh1 {[%emt 0:15:32]} Ne7 {[%emt 0:08:43]} 17. cxd4 {[%emt 0:06:23]} Bxf5 {[%emt 0:05:36]} 18. dxc5 {[%emt 0:10:10]} Bg4 {[%emt 0:00:48]} 19. Qe3 {[%emt 0:00:09]} Nc6 {[%emt 0:02:10]} 20. f3 {[%emt 0:02:39]} Be6 {[%emt 0:01:52]} 21. Nc3 {[%emt 0:01:51]} Qd4 {[%emt 0:04:34]} 22. Qxd4 {[%emt 0:05:19]} Nxd4 {[%emt 0:01:07]} 23. Nd5 {[%emt 0:00:56]} Bxd5 {[%emt 0:01:02]} 24. exd5 {[%emt 0:00:01]} Rd8 {[%emt 0:00:51]} 25. c6 {[%emt 0:02:08]} bxc6 {[%emt 0:01:13]} 26. dxc6 {[%emt 0:00:03]} Nxc6 {[%emt 0:00:22]} 27. Bxa6 {[%emt 0:00:02]} Ke7 {[%emt 0:00:17]} 28. b4 {[%emt 0:02:05]} f5 {[%emt 0:00:24]} 29. Rfe1 {[%emt 0:00:26]} Kd6 {[%emt 0:00:29]} 30. Rad1+ {[%emt 0:00:30]} Nd4 {[%emt 0:00:16]} 31. Bd3 {[%emt 0:00:36]} Nxf3 {[%emt 0:00:50]} 32. Be4+ {[%emt 0:00:25]} Nd4 {[%emt 0:00:14]} 33. Bxf5 {[%emt 0:00:01]} h5 {[%emt 0:00:38]} 34. Kg2 {[%emt 0:00:51]} Rg5 {[%emt 0:00:15]} 35. Be4 {[%emt 0:00:26]} f5 {[%emt 0:00:29]} 36. h4 {[%emt 0:00:11]} Rg7 {[%emt 0:01:15]} 37. Bxf5 {[%emt 0:00:02]} Rdg8 {[%emt 0:00:18]} 38. Re3 {[%emt 0:00:11]} Kc7 {[%emt 0:00:19]} 39. Bh3 {[%emt 0:00:31]} Kb6 {[%emt 0:00:22]} 40. Kh2 {[%emt 0:00:00]} Rc7 {[%emt 0:00:00]} 41. Rd2 {[%emt 0:01:26]} Rf8 {[%emt 0:05:12]} 42. Bg2 {[%emt 0:05:43]} Rf5 {[%emt 0:00:51]} 43. Be4 {[%emt 0:06:29]} Rf1 {[%emt 0:02:48]} 44. Bg2 {[%emt 0:01:53]} Rf5 {[%emt 0:05:09]} 45. a4 {[%emt 0:01:18]} Rc4 {[%emt 0:01:59]} 46. Rb2 {[%emt 0:01:11]} Nc2 {[%emt 0:01:28]} 47. a5+ {[%emt 0:09:54]} Kb5 {[%emt 0:06:50]} 48. Rf3 {[%emt 0:00:30]} Rxf3 {[%emt 0:00:57]} 49. Bxf3 {[%emt 0:00:02]} Nd4 {[%emt 0:02:55]} 50. Bxh5 {[%emt 0:01:46]} e4 {[%emt 0:01:35]} 51. Be2 {[%emt 0:02:47]} Nxe2 {[%emt 0:00:24]} 52. Rxe2 {[%emt 0:00:11]} Rxb4 {[%emt 0:00:30]} 53. Ra2 {[%emt 0:00:29]} Kc4 {[%emt 0:00:34]} 54. a6 {[%emt 0:00:30]} Rb8 {[%emt 0:00:05]} 55. a7 {[%emt 0:00:35]} Ra8 {[%emt 0:00:08]} 56. Kg2 {[%emt 0:00:53]} Kd3 {[%emt 0:00:36]} 57. Kf2 {[%emt 0:00:15]} e3+ {[%emt 0:01:46]} 58. Ke1 {[%emt 0:00:02]} e2 {[%emt 0:00:49]} 59. Ra3+ {[%emt 0:00:15]} 1-0

[Event "IND-ch Women 2019"]
[Site "Karaikkudi"]
[Date "2019.07.21"]
[Round "4.10"]
[White "Swati Ghate"]
[Black "Jyothsna L"]
[Result "1-0"]
[ECO "A08"]
[WhiteElo "2192"]
[BlackElo "1939"]
[Annotator "NA"]
[PlyCount "86"]
[EventDate "2019.07.19"]
[EventType "swiss"]
[EventCountry "IND"]
[SourceTitle "playchess.com"]
[Source "ChessBase"]
[SourceQuality "1"]
[TimeControl "40/5400+30:1800+30"]

1. e4 {[%emt 0:00:31]} e6 {[%emt 0:01:02]} 2. d3 {[%emt 0:00:42]} d5 {[%emt 0:00:02]} 3. Nd2 {[%emt 0:00:12]} c5 {[%emt 0:00:05]} 4. Ngf3 {[%emt 0:00:19]} Nc6 {[%emt 0:00:19]} 5. g3 {[%emt 0:00:24]} Nf6 {[%emt 0:00:07]} 6. Bg2 {[%emt 0:00:17]} g6 {[%emt 0:00:02]} 7. O-O {[%emt 0:02:20]} Bg7 {[%emt 0:00:03]} 8. exd5 {[%emt 0:08:27]} Nxd5 {[%emt 0:00:39]} 9. Nb3 {[%emt 0:03:16]} b6 {[%emt 0:01:32]} 10. c4 {[%emt 0:05:13] [#]} (10. d4 $11) 10... Nde7 $1 {[%emt 0:06:46]} 11. d4 {[%emt 0:00:22]} cxd4 {[%emt 0:02:55]} 12. Nfxd4 {[%emt 0:00:31]} Bb7 {[%emt 0:04:57]} 13. Bg5 {[%emt 0:11:25]} Nxd4 {[%emt 0:10:27]} 14. Bxb7 {[%emt 0:01:22]} Rb8 {[%emt 0:00:36]} 15. Be4 {[%emt 0:13:51]} h6 {[%emt 0:44:59] [#]} 16. Bf4 $1 {[%emt 0:04:33]} e5 {[%emt 0:00:52]} 17. Nxd4 {[%emt 0:00:59]} O-O $16 {[%emt 0:08:51]} 18. Ne6 {[%emt 0:10:18]} fxe6 {[%emt 0:02:27]} 19. Bd2 {[%emt 0:02:14]} Nf5 {[%emt 0:02:55]} 20. Bc3 {[%emt 0:03:22]} Qc7 {[%emt 0:01:21]} 21. Qg4 {[%emt 0:02:08]} Qf7 {[%emt 0:01:37]} 22. Rae1 {[%emt 0:05:37]} h5 {[%emt 0:02:59]} 23. Qe2 {[%emt 0:03:12]} Rbd8 {[%emt 0:00:51]} 24. Kg2 {[%emt 0:07:20]} g5 {[%emt 0:02:07]} 25. Bb1 {[%emt 0:04:13]} Nd4 {[%emt 0:00:22]} 26. Qe4 {[%emt 0:01:27]} Qf3+ {[%emt 0:00:47]} 27. Qxf3 {[%emt 0:01:25]} Nxf3 {[%emt 0:00:01]} 28. Re2 {[%emt 0:01:00]} Nd4 {[%emt 0:01:01]} 29. Re3 {[%emt 0:01:13]} h4 {[%emt 0:01:34]} 30. Rfe1 {[%emt 0:01:30]} h3+ {[%emt 0:00:56]} 31. Kxh3 {[%emt 0:02:57]} Rxf2 {[%emt 0:00:04]} 32. g4 {[%emt 0:01:40]} Rd7 {[%emt 0:01:03]} 33. Kg3 {[%emt 0:01:16]} Rf4 {[%emt 0:00:15]} 34. Rxe5 {[%emt 0:00:48]} Bxe5 {[%emt 0:01:29]} 35. Rxe5 {[%emt 0:00:01]} Rg7 {[%emt 0:00:42]} 36. Bd2 {[%emt 0:01:00]} Nf3 {[%emt 0:00:38]} 37. Rxg5 {[%emt 0:00:17]} Rxg4+ {[%emt 0:00:31]} 38. Rxg4 {[%emt 0:00:38]} Nxd2 {[%emt 0:00:07]} 39. Bd3 {[%emt 0:00:26]} Rxg4+ {[%emt 0:00:38]} 40. Kxg4 {[%emt 0:00:00]} e5 {[%emt 0:00:00]} 41. Kg3 {[%emt 0:05:30]} e4 {[%emt 0:08:59]} 42. Be2 {[%emt 0:00:45]} a5 {[%emt 0:00:39]} 43. Kf4 {[%emt 0:01:45]} a4 {[%emt 0:23:13] Kxe4} 1-0

[Event "IND-ch Women 2019"]
[Site "Karaikkudi"]
[Date "2019.07.21"]
[Round "4.12"]
[White "Pandey Srishti"]
[Black "Gomes, Mary Ann"]
[Result "1-0"]
[ECO "E11"]
[WhiteElo "1882"]
[BlackElo "2303"]
[Annotator "NA"]
[PlyCount "116"]
[EventDate "2019.07.19"]
[EventType "swiss"]
[EventCountry "IND"]
[SourceTitle "playchess.com"]
[Source "ChessBase"]
[SourceQuality "1"]
[TimeControl "40/5400+30:1800+30"]

1. d4 {[%emt 0:00:00]} Nf6 {[%emt 0:00:00]} 2. Nf3 {[%emt 0:00:00]} e6 {[%emt 0:00:00]} 3. c4 {[%emt 0:00:00]} Bb4+ {[%emt 0:00:00]} 4. Bd2 {[%emt 0:00:00]} Qe7 {[%emt 0:00:00]} 5. g3 {[%emt 0:00:00]} Bxd2+ {[%emt 0:00:03]} 6. Nbxd2 {[%emt 0:00:06]} d6 {[%emt 0:00:06]} 7. Bg2 {[%emt 0:00:04]} O-O {[%emt 0:00:10]} 8. O-O {[%emt 0:00:04]} e5 {[%emt 0:00:04]} 9. e4 {[%emt 0:01:38]} Bg4 {[%emt 0:00:07]} 10. d5 {[%emt 0:00:18]} a5 {[%emt 0:00:12]} 11. Qc2 {[%emt 0:00:55]} Na6 {[%emt 0:00:09] E11: Bogo-Indian} (11... Bxf3 12. Bxf3 Na6 13. a3 c6 14. Rab1 Rfc8 15. dxc6 bxc6 16. b4 axb4 17. axb4 Nc7 18. Ra1 Rab8 19. Ra4 {0-1 (67) Sieciechowicz,M (2462)-Moranda,W (2570) Karpacz 2013}) 12. a3 {[%emt 0:01:10]} Qd7 {[%emt 0:00:24]} 13. b3 {[%emt 0:01:09]} Bh3 $146 {[%emt 0:00:47]} ({Predecessor:} 13... c6 14. Rfc1 Rfc8 15. Qb2 Nc5 16. Ne1 cxd5 17. f3 Bh3 {½-½ (17) Tchetchelnitski,M (2134)-Liebig,S (2153) Germany 2016}) 14. Rfd1 {[%emt 0:08:16]} Nh5 {[%emt 0:08:57]} 15. Ne1 {[%emt 0:17:35]} Bxg2 {[%emt 0:00:34]} 16. Nxg2 {[%emt 0:00:06]} Qh3 {[%emt 0:02:25]} 17. Rab1 {[%emt 0:15:22]} f5 {[%emt 0:00:46]} 18. exf5 $1 {[%emt 0:00:21]} Rxf5 {[%emt 0:00:09]} 19. Ne4 {[%emt 0:04:14]} Nf6 {[%emt 0:09:10]} 20. Ne3 {[%emt 0:16:54]} Rh5 {[%emt 0:03:00]} 21. Nxf6+ {[%emt 0:00:06]} gxf6 {[%emt 0:00:13]} 22. f3 {[%emt 0:00:06]} Kf7 {[%emt 0:08:49] [#]} (22... f5 $14) 23. Qg2 {[%emt 0:07:48]} ({Better is} 23. Rd2 $1 $16) 23... Qd7 {[%emt 0:00:06]} 24. g4 {[%emt 0:04:51]} Rg5 {[%emt 0:00:46]} 25. Qc2 {[%emt 0:03:41]} Rh8 {[%emt 0:03:30] [#]} 26. h4 $1 {[%emt 0:00:41]} Rg6 {[%emt 0:02:12]} 27. h5 {[%emt 0:00:05]} Rg5 {[%emt 0:00:03]} 28. Kf2 {[%emt 0:01:34]} Ke8 {[%emt 0:06:05]} 29. b4 {[%emt 0:02:24]} axb4 {[%emt 0:02:35]} 30. axb4 {[%emt 0:00:02]} Kd8 {[%emt 0:00:12]} 31. Ra1 $18 {[%emt 0:03:02]} Qc8 {[%emt 0:04:26]} 32. Ra4 {[%emt 0:01:33]} Ke7 {[%emt 0:01:19]} 33. c5 {[%emt 0:02:57]} Kf7 {[%emt 0:00:55]} 34. Qc4 {[%emt 0:01:47]} f5 {[%emt 0:05:18]} 35. Nxf5 {[%emt 0:03:17]} Rxf5 {[%emt 0:00:06]} 36. gxf5 {[%emt 0:00:02]} Qxf5 {[%emt 0:00:07]} 37. Rg1 {[%emt 0:00:29]} Qxh5 {[%emt 0:01:11]} 38. cxd6 {[%emt 0:02:57]} b5 {[%emt 0:01:25]} 39. Qxb5 {[%emt 0:00:33]} Qh4+ {[%emt 0:00:08]} 40. Rg3 {[%emt 0:03:53]} Qd4+ {[%emt 0:00:00]} 41. Ke1 {[%emt 0:06:46]} Qc3+ {[%emt 0:01:20]} 42. Kf1 {[%emt 0:00:53]} Qc1+ {[%emt 0:00:44]} 43. Kf2 {[%emt 0:02:00]} Qc2+ {[%emt 0:00:05]} 44. Kg1 {[%emt 0:00:51]} Qd1+ {[%emt 0:00:40]} 45. Kh2 {[%emt 0:01:29]} Qd2+ {[%emt 0:00:10]} 46. Rg2 {[%emt 0:02:56]} Qf4+ {[%emt 0:04:54]} 47. Kg1 {[%emt 0:01:21]} Qd4+ {[%emt 0:02:10]} 48. Kf1 {[%emt 0:00:06]} Qd1+ {[%emt 0:00:03]} 49. Kf2 {[%emt 0:00:11]} Qc2+ {[%emt 0:00:51]} 50. Kg1 {[%emt 0:00:22]} Qc1+ {[%emt 0:00:10]} 51. Qf1 {[%emt 0:00:45]} Qe3+ {[%emt 0:01:29]} 52. Kh1 {[%emt 0:00:10]} Nb8 {[%emt 0:06:23]} 53. dxc7 {[%emt 0:00:25]} Nd7 {[%emt 0:00:08]} 54. b5 {[%emt 0:06:01]} Nf6 {[%emt 0:02:30]} 55. d6 {[%emt 0:01:41]} Nd5 {[%emt 0:01:35]} 56. Rh4 {[%emt 0:01:46]} Ke6 {[%emt 0:01:59]} 57. Rg6+ {[%emt 0:01:25]} Nf6 {[%emt 0:03:04]} 58. Rhh6 {[%emt 0:03:10]} Kd5 {[%emt 0:54:16]} 1-0

[Event "IND-ch Women 2019"]
[Site "Karaikkudi"]
[Date "2019.07.21"]
[Round "4.13"]
[White "Priyanka Nutakki"]
[Black "Potluri Supreetha"]
[Result "1-0"]
[ECO "A36"]
[WhiteElo "2293"]
[BlackElo "1873"]
[Annotator "NA"]
[PlyCount "83"]
[EventDate "2019.07.19"]
[EventType "swiss"]
[EventCountry "IND"]
[SourceTitle "playchess.com"]
[Source "ChessBase"]
[SourceQuality "1"]
[TimeControl "40/5400+30:1800+30"]

1. c4 {[%emt 0:00:00]} Nf6 {[%emt 0:00:00]} 2. Nc3 {[%emt 0:00:00]} g6 {[%emt 0:00:00]} 3. e4 {[%emt 0:00:00]} d6 {[%emt 0:00:00]} 4. g3 {[%emt 0:00:05]} Bg7 {[%emt 0:00:00]} 5. Bg2 {[%emt 0:00:04]} O-O {[%emt 0:00:09]} 6. Nge2 {[%emt 1:32:51]} c5 {[%emt 0:00:10]} 7. O-O {[%emt 0:00:00]} Nc6 {[%emt 0:00:05]} 8. d3 {[%emt 0:00:00]} Ne8 {[%emt 0:00:21]} 9. Be3 {[%emt 0:00:00]} Nd4 {[%emt 0:00:07]} 10. Rb1 {[%emt 0:00:00]} Nc7 {[%emt 0:30:48]} 11. b4 {[%emt 0:00:00]} e5 {[%emt 0:00:55]} 12. f4 {[%emt 0:00:00]} f6 {[%emt 0:03:15]} 13. h3 {[%emt 0:00:00]} a6 {[%emt 0:07:07]} (13... b6 $14) 14. g4 {[%emt 0:00:00]} b5 {[%emt 0:25:32]} 15. cxb5 {[%emt 0:00:00]} ({Better is} 15. f5 $14) 15... axb5 {[%emt 0:01:00]} 16. f5 {[%emt 0:00:00]} Bd7 {[%emt 0:04:59]} 17. h4 {[%emt 0:00:00]} Kh8 {[%emt 0:05:45]} 18. Ng3 $11 {[%emt 0:00:00]} Ra3 {[%emt 0:16:03]} 19. Qd2 {[%emt 0:00:00]} cxb4 {[%emt 0:02:00]} 20. Rxb4 {[%emt 0:00:00]} Na6 {[%emt 0:00:50]} 21. Rxd4 {[%emt 0:00:00]} exd4 {[%emt 0:00:05]} 22. Bxd4 {[%emt 0:00:00]} Qa5 {[%emt 0:01:07]} 23. g5 {[%emt 0:00:00]} fxg5 {[%emt 0:00:35]} 24. f6 {[%emt 0:00:00]} Rxf6 {[%emt 0:00:30]} 25. Rxf6 {[%emt 0:00:00]} Bxf6 {[%emt 0:00:30]} 26. Bxf6+ {[%emt 0:00:00]} Kg8 {[%emt 0:00:00]} 27. Qxg5 {[%emt 0:00:00]} Be6 {[%emt 0:00:53]} 28. Qh6 {[%emt 0:00:00]} Qc7 {[%emt 0:00:16]} 29. Nxb5 {[%emt 0:00:00]} Qf7 {[%emt 0:00:10]} 30. Nxa3 {[%emt 0:00:00]} Qxf6 {[%emt 0:00:02]} 31. Nc2 {[%emt 0:00:00]} Bxa2 {[%emt 0:01:10]} 32. h5 {[%emt 0:00:00]} Bf7 {[%emt 0:00:11]} 33. hxg6 {[%emt 0:00:00]} hxg6 {[%emt 0:00:06]} 34. d4 {[%emt 0:00:00]} Bb3 {[%emt 0:01:44]} 35. Ne3 {[%emt 0:00:00]} Qxd4 {[%emt 0:00:31]} 36. Qxg6+ {[%emt 0:00:00]} Qg7 {[%emt 0:00:08]} 37. Qxd6 {[%emt 0:00:00]} Nc7 {[%emt 0:00:46]} 38. Nef5 {[%emt 0:00:00]} Qa1+ {[%emt 0:00:30]} 39. Kh2 {[%emt 0:00:00]} Ne6 {[%emt 0:00:34]} 40. Qb8+ {[%emt 0:00:00]} Kf7 {[%emt 0:00:00]} 41. Qxb3 {[%emt 0:00:00]} Qh8+ {[%emt 0:00:25]} 42. Bh3 {[%emt 0:00:00]} 1-0

[Event "IND-ch Women 2019"]
[Site "Karaikkudi"]
[Date "2019.07.21"]
[Round "4.14"]
[White "Singh, Neha"]
[Black "Pratyusha, Bodda"]
[Result "0-1"]
[ECO "B90"]
[WhiteElo "1809"]
[BlackElo "2265"]
[Annotator "NA"]
[PlyCount "132"]
[EventDate "2019.07.19"]
[EventType "swiss"]
[EventCountry "IND"]
[SourceTitle "playchess.com"]
[Source "ChessBase"]
[SourceQuality "1"]
[TimeControl "40/5400+30:1800+30"]

1. e4 {[%emt 0:00:00]} c5 {[%emt 0:00:00]} 2. Nf3 {[%emt 0:00:00]} d6 {[%emt 0:00:00]} 3. d4 {[%emt 0:00:00]} cxd4 {[%emt 0:00:00]} 4. Nxd4 {[%emt 0:00:00]} Nf6 {[%emt 0:00:00]} 5. Nc3 {[%emt 0:00:00]} a6 {[%emt 0:00:03]} 6. h3 {[%emt 0:00:17]} e5 {[%emt 0:00:05]} 7. Nf3 {[%emt 0:01:59] B90: Sicilian Najdorf: Unusual White 6th moves, 6 Be3 Ng4 and 6 Be3 e5} (7. Nde2 h5 8. Nd5 Nxd5 9. Qxd5 Nc6 10. Qd1 Be6 11. Nc3 Rc8 12. Be3 Ne7 13. Be2 d5 14. exd5 Nxd5 15. Nxd5 Qxd5 {½-½ (26) Wang,H (2730)-Giri,A (2783) St Petersburg 2018}) 7... Be7 {[%emt 0:00:05]} 8. Be3 {[%emt 0:00:57]} h6 {[%emt 0:00:14]} 9. g4 {[%emt 0:01:14]} Nc6 {[%emt 0:14:17]} 10. Bg2 $146 {[%emt 0:02:03]} ({Predecessor:} 10. Nd5 Nxd5 11. exd5 Qa5+ 12. c3 Nb8 13. Bg2 Qc7 14. Qe2 f5 15. gxf5 Bxf5 {½-½ (48) Poli,G (2465)-Fajs,B (2449) ICCF email 2010}) 10... Be6 {[%emt 0:02:51]} 11. g5 {[%emt 0:05:15]} hxg5 {[%emt 0:05:56]} 12. Nxg5 {[%emt 0:02:51]} Na5 {[%emt 0:04:17]} 13. Nxe6 {[%emt 0:14:10]} fxe6 {[%emt 0:00:04]} 14. Qd3 {[%emt 0:00:32]} Qc7 {[%emt 0:01:40]} 15. O-O-O {[%emt 0:01:57]} Nc4 {[%emt 0:01:39]} 16. Bg5 {[%emt 0:09:57]} (16. h4 $11 {keeps the balance.}) 16... Rc8 $1 {[%emt 0:01:41]} 17. f4 $2 {[%emt 0:07:06]} (17. b3 $17 Na3 18. Kb2) 17... exf4 {[%emt 0:04:37]} 18. Bxf4 {[%emt 0:00:50]} Nh5 {[%emt 0:00:54]} 19. Bh2 {[%emt 0:03:05]} Qb6 {[%emt 0:11:44]} 20. Na4 {[%emt 0:03:26]} Qe3+ $2 {[%emt 0:05:08]} (20... Qb5 $19 {and Black stays clearly on top.} 21. e5 Qxa4 22. exd6 O-O 23. dxe7 Qxa2 24. exf8=Q+ Rxf8 25. Qxc4 Qxc4) 21. Kb1 {[%emt 0:01:46]} O-O {[%emt 0:03:35]} 22. Qxe3 {[%emt 0:10:15]} (22. h4 $15) 22... Nxe3 {[%emt 0:00:30]} 23. Rd2 {[%emt 0:00:03]} Nf4 $17 {[%emt 0:15:24]} 24. Bf3 {[%emt 0:14:54]} Nxh3 {[%emt 0:04:16]} 25. Bxd6 {[%emt 0:03:10]} Rxf3 {[%emt 0:00:39]} 26. Bxe7 {[%emt 0:00:05]} Nf2 {[%emt 0:00:47]} 27. Re1 {[%emt 0:00:42]} Nc4 {[%emt 0:03:17]} 28. Rde2 {[%emt 0:02:15]} b5 {[%emt 0:00:19]} 29. Nc3 {[%emt 0:01:05]} Kf7 {[%emt 0:02:38]} 30. Bh4 {[%emt 0:00:21]} Nh3 {[%emt 0:00:18]} 31. Nd1 {[%emt 0:03:30]} g5 {[%emt 0:00:33]} 32. Bf2 {[%emt 0:00:21]} g4 {[%emt 0:00:33]} 33. b3 {[%emt 0:00:33]} Na3+ {[%emt 0:02:20]} 34. Kb2 {[%emt 0:00:25]} Nxc2 {[%emt 0:00:12]} 35. Rh1 {[%emt 0:01:16]} Nb4 {[%emt 0:00:11]} 36. Be3 {[%emt 0:03:48]} Nd3+ {[%emt 0:02:06]} 37. Ka3 {[%emt 0:00:36]} Ndf4 {[%emt 0:00:52]} 38. Rd2 {[%emt 0:00:29]} e5 {[%emt 0:01:14]} 39. Rd7+ {[%emt 0:01:12]} Kg8 {[%emt 0:00:50]} 40. Re1 {[%emt 0:00:00]} g3 {[%emt 0:00:00]} 41. Bg1 {[%emt 0:07:02]} Nxg1 {[%emt 0:04:01]} 42. Rxg1 {[%emt 0:00:23]} g2 {[%emt 0:01:38]} 43. Rd2 {[%emt 0:00:18]} Kf7 {[%emt 0:00:28]} 44. Rdxg2 {[%emt 0:01:27]} Nxg2 {[%emt 0:00:15]} 45. Rxg2 {[%emt 0:00:02]} Rd8 {[%emt 0:00:09]} 46. Nf2 {[%emt 0:01:57]} Rg8 {[%emt 0:02:42]} 47. Rh2 {[%emt 0:02:25]} a5 {[%emt 0:01:02]} 48. Kb2 {[%emt 0:01:02]} Rg1 {[%emt 0:01:26]} 49. Nh3 {[%emt 0:02:14]} Rgg3 {[%emt 0:00:41]} 50. Nf2 {[%emt 0:00:21]} b4 {[%emt 0:00:56]} 51. Kc2 {[%emt 0:00:31]} Rg1 {[%emt 0:01:15]} 52. Nd3 {[%emt 0:00:39]} Kf6 {[%emt 0:00:34]} 53. Rh6+ {[%emt 0:02:10]} Kg7 {[%emt 0:03:32]} 54. Rh2 {[%emt 0:00:41]} Rg5 {[%emt 0:00:09]} 55. Kd2 {[%emt 0:00:37]} Rfg3 {[%emt 0:00:22]} 56. Ne1 {[%emt 0:02:43]} R5g4 {[%emt 0:01:48]} 57. Re2 {[%emt 0:00:18]} Rg6 {[%emt 0:00:11]} 58. Rf2 {[%emt 0:01:44]} Rd6+ {[%emt 0:00:13]} 59. Ke2 {[%emt 0:00:05]} Rd4 {[%emt 0:01:00]} 60. Rf5 {[%emt 0:02:30]} Rxe4+ {[%emt 0:00:22]} 61. Kf2 {[%emt 0:00:14]} Rc3 {[%emt 0:00:21]} 62. Rg5+ {[%emt 0:01:07]} Kf6 {[%emt 0:00:07]} 63. Rh5 {[%emt 0:00:05]} Kg6 {[%emt 0:00:39]} 64. Rh8 {[%emt 0:00:25]} a4 {[%emt 0:00:44]} 65. bxa4 {[%emt 0:00:34]} Ra3 {[%emt 0:00:08]} 66. Rb8 {[%emt 0:00:22]} Rxa2+ {[%emt 0:00:13]} 0-1

[Event "IND-ch Women 2019"]
[Site "Karaikkudi"]
[Date "2019.07.21"]
[Round "4.16"]
[White "Parnali, S Dharia"]
[Black "Sunyuktha C M N"]
[Result "0-1"]
[ECO "A13"]
[WhiteElo "2145"]
[BlackElo "1815"]
[Annotator "NA"]
[PlyCount "94"]
[EventDate "2019.07.19"]
[EventType "swiss"]
[EventCountry "IND"]
[SourceTitle "playchess.com"]
[Source "ChessBase"]
[SourceQuality "1"]
[TimeControl "40/5400+30:1800+30"]

1. Nf3 {[%emt 0:00:00]} d5 {[%emt 0:00:04]} 2. c4 {[%emt 0:00:00]} e6 {[%emt 0:02:56]} 3. g3 {[%emt 0:00:04]} Nf6 {[%emt 0:01:12]} 4. Bg2 {[%emt 0:00:05]} c6 {[%emt 0:05:00]} 5. b3 {[%emt 0:01:12]} Nbd7 {[%emt 0:09:09]} 6. Bb2 {[%emt 0:00:40]} Bd6 {[%emt 0:04:24]} 7. Nc3 {[%emt 0:02:32]} O-O {[%emt 0:05:08]} 8. O-O {[%emt 0:01:11]} e5 {[%emt 0:20:28]} 9. cxd5 {[%emt 0:02:51]} cxd5 {[%emt 0:00:15]} 10. d4 {[%emt 0:14:56]} e4 {[%emt 0:02:07]} 11. Nh4 {[%emt 0:01:48]} Nb6 {[%emt 0:18:26]} 12. Qd2 {[%emt 0:11:43]} Re8 {[%emt 0:01:21]} 13. a4 {[%emt 0:12:11]} Bd7 {[%emt 0:20:13]} 14. f3 {[%emt 0:02:49]} e3 {[%emt 0:02:53]} ({Better is} 14... Bb4 $15) 15. Qd3 $11 {[%emt 0:00:47]} Nh5 {[%emt 0:02:51]} 16. Nd1 {[%emt 0:04:45]} Bxg3 {[%emt 0:00:52]} 17. hxg3 {[%emt 0:01:48]} Nxg3 {[%emt 0:00:01]} 18. Nxe3 {[%emt 0:01:36]} Nxf1 {[%emt 0:00:29]} 19. Nef5 {[%emt 0:00:51]} Ng3 {[%emt 0:00:12]} 20. Nxg3 {[%emt 0:00:04]} Qxh4 {[%emt 0:00:04]} 21. Kf2 {[%emt 0:00:27]} f5 {[%emt 0:01:03]} 22. Rh1 {[%emt 0:00:24]} Qe7 {[%emt 0:00:30]} 23. a5 {[%emt 0:01:33]} Nc8 {[%emt 0:00:03]} 24. Nxf5 {[%emt 0:01:13]} Bxf5 {[%emt 0:00:49]} 25. Qxf5 {[%emt 0:00:01]} Qxe2+ {[%emt 0:01:12]} 26. Kg3 {[%emt 0:00:01]} g6 {[%emt 0:00:39]} 27. Qxd5+ {[%emt 0:00:14]} Qe6 {[%emt 0:00:15]} 28. Qxb7 {[%emt 0:01:06]} Ne7 {[%emt 0:00:30]} 29. Bh3 {[%emt 0:02:59]} Qd6+ {[%emt 0:00:07]} 30. Kf2 {[%emt 0:00:11]} Rf8 {[%emt 0:01:10]} 31. d5 {[%emt 0:00:37]} Qc5+ {[%emt 0:00:23]} 32. Kg3 {[%emt 0:00:35]} Rxf3+ {[%emt 0:00:24]} 33. Kxf3 {[%emt 0:00:22]} Rf8+ {[%emt 0:00:03]} 34. Ke4 {[%emt 0:01:38]} Qc2+ {[%emt 0:00:01]} 35. Ke3 {[%emt 0:01:13]} Qf2+ {[%emt 0:00:08]} 36. Kd3 {[%emt 0:00:24]} Rf3+ {[%emt 0:00:15]} 37. Kc4 {[%emt 0:00:40]} Qc2+ {[%emt 0:00:13]} 38. Kd4 {[%emt 0:02:51]} Qxb2+ {[%emt 0:01:55]} 39. Kc5 {[%emt 0:00:01]} Qa3+ {[%emt 0:01:04]} 40. b4 {[%emt 0:00:00]} Qe3+ {[%emt 0:00:00]} 41. Kd6 {[%emt 0:05:32]} Rf7 {[%emt 0:18:25]} 42. Qa8+ {[%emt 0:06:35]} Kg7 {[%emt 0:00:29]} 43. Be6 {[%emt 0:00:57]} Qf4+ {[%emt 0:04:36]} 44. Kc5 {[%emt 0:03:27]} Qc7+ {[%emt 0:01:15]} 45. Kb5 {[%emt 0:01:26]} Rf4 {[%emt 0:02:10]} 46. Ka6 {[%emt 0:00:18]} Rxb4 {[%emt 0:00:40]} 47. Qe8 {[%emt 0:00:23]} Qb7# {[%emt 0:00:03]} 0-1